[Event "*** Titled Tuesday Blitz"]
[Site "Chess.com"]
[Date "2020.10.27"]
[Round "2"]
[White "PSvidler"]
[Black "AIROPITO7"]
[Result "1-0"]
[WhiteElo "2917"]
[BlackElo "2595"]
[TimeControl "180+1"]
[EndTime "10:17:51 PDT"]
[Termination "PSvidler won by checkmate"]

1. e4 {[%clk 0:03:00.9]} 1... e5 {[%clk 0:02:58.3]} 2. Nf3 {[%clk 0:03:00.4]}
2... Nc6 {[%clk 0:02:58.6]} 3. Bc4 {[%clk 0:03:00.1]} 3... Nf6 {[%clk
0:02:57.3]} 4. d3 {[%clk 0:03:00.1]} 4... Bc5 {[%clk 0:02:55.6]} 5. c3 {[%clk
0:02:59.9]} 5... d6 {[%clk 0:02:52]} 6. Nbd2 {[%clk 0:02:55.5]} 6... O-O {[%clk
0:02:51.7]} 7. Bb3 {[%clk 0:02:48.1]} 7... a6 {[%clk 0:02:39.9]} 8. Nf1 {[%clk
0:02:47]} 8... Ne7 {[%clk 0:02:36.5]} 9. Ng3 {[%clk 0:02:46.1]} 9... Ng6 {[%clk
0:02:36.5]} 10. O-O {[%clk 0:02:45.9]} 10... Ba7 {[%clk 0:02:31.9]} 11. h3
{[%clk 0:02:45.2]} 11... d5 {[%clk 0:02:12.3]} 12. exd5 {[%clk 0:02:44]} 12...
Nxd5 {[%clk 0:02:12.3]} 13. Re1 {[%clk 0:02:44.7]} 13... Ndf4 {[%clk 0:02:06.1]}
14. Bxf4 {[%clk 0:02:36]} 14... exf4 {[%clk 0:02:05.2]} 15. Ne4 {[%clk
0:02:35.2]} 15... Bf5 {[%clk 0:01:59.7]} 16. d4 {[%clk 0:02:27.3]} 16... Bxe4
{[%clk 0:01:58.5]} 17. Rxe4 {[%clk 0:02:26.7]} 17... Qd6 {[%clk 0:01:59]} 18.
Qe2 {[%clk 0:02:17.9]} 18... c5 {[%clk 0:01:57.8]} 19. Re1 {[%clk 0:02:16.8]}
19... cxd4 {[%clk 0:01:57.1]} 20. cxd4 {[%clk 0:02:16.9]} 20... Rad8 {[%clk
0:01:53.5]} 21. h4 {[%clk 0:02:17.1]} 21... Qf6 {[%clk 0:01:50.5]} 22. Qd2
{[%clk 0:01:31]} 22... Nxh4 {[%clk 0:01:47.3]} 23. Nxh4 {[%clk 0:01:30.8]} 23...
Qxh4 {[%clk 0:01:47]} 24. Rxf4 {[%clk 0:01:30.9]} 24... Qg5 {[%clk 0:01:16.3]}
25. Qe3 {[%clk 0:01:30.7]} 25... h6 {[%clk 0:01:06.4]} 26. g3 {[%clk 0:01:23.7]}
26... Bb8 {[%clk 0:01:04.4]} 27. Re4 {[%clk 0:01:09.4]} 27... Qxe3 {[%clk
0:01:03.9]} 28. R1xe3 {[%clk 0:01:09.4]} 28... Ba7 {[%clk 0:01:00.2]} 29. Re7
{[%clk 0:01:09.3]} 29... Bxd4 {[%clk 0:00:59.2]} 30. Rf3 {[%clk 0:01:09.4]}
30... Bxb2 {[%clk 0:00:55.9]} 31. Bxf7+ {[%clk 0:01:08.5]} 31... Kh8 {[%clk
0:00:55.4]} 32. Rxb7 {[%clk 0:01:08.4]} 32... Bd4 {[%clk 0:00:51.4]} 33. Kg2
{[%clk 0:01:08.2]} 33... Rd6 {[%clk 0:00:49.9]} 34. Bg6 {[%clk 0:01:04.3]} 34...
Rdd8 {[%clk 0:00:45.5]} 35. Rxf8+ {[%clk 0:01:03.6]} 35... Rxf8 {[%clk
0:00:45.6]} 36. f4 {[%clk 0:01:04.3]} 36... a5 {[%clk 0:00:44.1]} 37. a4 {[%clk
0:01:04.1]} 37... Bc3 {[%clk 0:00:43.5]} 38. Kf3 {[%clk 0:01:03.9]} 38... Bd4
{[%clk 0:00:40.9]} 39. Ke4 {[%clk 0:01:03.3]} 39... Bc3 {[%clk 0:00:41.1]} 40.
g4 {[%clk 0:01:03.6]} 40... Bd2 {[%clk 0:00:39.3]} 41. Bf7 {[%clk 0:01:02.9]}
41... g6 {[%clk 0:00:23.6]} 42. f5 {[%clk 0:00:57.8]} 42... gxf5+ {[%clk
0:00:23.8]} 43. gxf5 {[%clk 0:00:58]} 43... Bc3 {[%clk 0:00:21.3]} 44. Kd5
{[%clk 0:00:55.7]} 44... Kg7 {[%clk 0:00:18.8]} 45. Ke6 {[%clk 0:00:55.5]} 45...
Bd2 {[%clk 0:00:10.5]} 46. f6+ {[%clk 0:00:55]} 46... Kh8 {[%clk 0:00:11]} 47.
Kf5 {[%clk 0:00:52.3]} 47... Bc3 {[%clk 0:00:09.8]} 48. Kg6 {[%clk 0:00:52.1]}
48... Rc8 {[%clk 0:00:08.4]} 49. Be6 {[%clk 0:00:51.2]} 49... Rf8 {[%clk
0:00:05.3]} 50. Rh7# {[%clk 0:00:50.8]} 1-0

[Event "*** Titled Tuesday Blitz"]
[Site "Chess.com"]
[Date "2020.10.27"]
[Round "2"]
[White "Matols"]
[Black "gui_borba"]
[Result "0-1"]
[WhiteElo "2239"]
[BlackElo "2462"]
[TimeControl "180+1"]
[EndTime "10:17:52 PDT"]
[Termination "gui_borba won by resignation"]

1. d4 {[%clk 0:03:00.9]} 1... Nf6 {[%clk 0:02:58.8]} 2. c4 {[%clk 0:03:00.9]}
2... e6 {[%clk 0:02:59.4]} 3. g3 {[%clk 0:03:00.7]} 3... Bb4+ {[%clk 0:02:58.5]}
4. Bd2 {[%clk 0:03:00]} 4... Be7 {[%clk 0:02:58.8]} 5. Bg2 {[%clk 0:02:59.2]}
5... d5 {[%clk 0:02:59.4]} 6. Nf3 {[%clk 0:02:57.3]} 6... O-O {[%clk 0:02:59.9]}
7. O-O {[%clk 0:02:57.5]} 7... c6 {[%clk 0:03:00.5]} 8. Qc2 {[%clk 0:02:57.3]}
8... Nbd7 {[%clk 0:02:58.5]} 9. Bf4 {[%clk 0:02:56.4]} 9... Ne4 {[%clk 0:02:58]}
10. Nc3 {[%clk 0:02:44.1]} 10... Nd6 {[%clk 0:02:58.2]} 11. c5 {[%clk
0:02:28.8]} 11... Nf5 {[%clk 0:02:57]} 12. e4 {[%clk 0:02:17.2]} 12... dxe4
{[%clk 0:02:55.3]} 13. Nxe4 {[%clk 0:02:16.8]} 13... Nf6 {[%clk 0:02:54.5]} 14.
Rad1 {[%clk 0:02:04]} 14... Nxe4 {[%clk 0:02:49]} 15. Qxe4 {[%clk 0:02:03]}
15... Bf6 {[%clk 0:02:42.5]} 16. Be5 {[%clk 0:01:55.6]} 16... Qd5 {[%clk
0:02:22.3]} 17. Rfe1 {[%clk 0:01:45.8]} 17... Qxe4 {[%clk 0:02:21]} 18. Rxe4
{[%clk 0:01:45]} 18... Rd8 {[%clk 0:02:21]} 19. g4 {[%clk 0:01:28.9]} 19... Ne7
{[%clk 0:02:16.2]} 20. Bd6 {[%clk 0:01:14.7]} 20... Nd5 {[%clk 0:02:12.5]} 21.
Ne5 {[%clk 0:01:00.8]} 21... Be7 {[%clk 0:02:06.4]} 22. Nc4 {[%clk 0:00:53.4]}
22... Bxd6 {[%clk 0:01:55.3]} 23. Nxd6 {[%clk 0:00:52.4]} 23... b6 {[%clk
0:01:55]} 24. a3 {[%clk 0:00:49.8]} 24... Ba6 {[%clk 0:01:48.4]} 25. b4 {[%clk
0:00:48]} 25... bxc5 {[%clk 0:01:47.9]} 26. dxc5 {[%clk 0:00:47.5]} 26... Rab8
{[%clk 0:01:47.8]} 27. Red4 {[%clk 0:00:42.7]} 27... Nc3 {[%clk 0:01:41.5]} 28.
R1d2 {[%clk 0:00:28.1]} 28... Ne2+ {[%clk 0:01:39.7]} 29. Rxe2 {[%clk
0:00:24.5]} 29... Bxe2 {[%clk 0:01:40.6]} 30. Bxc6 {[%clk 0:00:24]} 30... Kf8
{[%clk 0:01:40.8]} 31. f3 {[%clk 0:00:20.5]} 31... Ke7 {[%clk 0:01:37.4]} 32.
Kf2 {[%clk 0:00:20.1]} 32... Ba6 {[%clk 0:01:34.9]} 33. Be4 {[%clk 0:00:20]}
33... Bc8 {[%clk 0:01:20]} 34. Ke3 {[%clk 0:00:19.5]} 34... e5 {[%clk
0:01:15.7]} 35. Rd2 {[%clk 0:00:19]} 35... g6 {[%clk 0:01:14.2]} 36. Rc2 {[%clk
0:00:17.5]} 36... Be6 {[%clk 0:01:13.8]} 37. Rd2 {[%clk 0:00:16]} 37... a5
{[%clk 0:01:12.1]} 38. b5 {[%clk 0:00:14.6]} 38... f5 {[%clk 0:01:04.6]} 39.
gxf5 {[%clk 0:00:14]} 39... gxf5 {[%clk 0:01:04.6]} 40. Bc6 {[%clk 0:00:14.1]}
40... Bd7 {[%clk 0:01:00.3]} 41. Bxd7 {[%clk 0:00:13.4]} 41... Rxd7 {[%clk
0:01:00.7]} 42. Nxf5+ {[%clk 0:00:13.4]} 42... Kd8 {[%clk 0:01:01]} 43. Nd6
{[%clk 0:00:13.1]} 43... Kc7 {[%clk 0:00:59.4]} 44. a4 {[%clk 0:00:12.8]} 44...
Rg8 {[%clk 0:00:57.5]} 45. Ke4 {[%clk 0:00:12.8]} 45... Rf7 {[%clk 0:00:56.9]}
46. Kxe5 {[%clk 0:00:12.6]} 46... Rxf3 {[%clk 0:00:55.4]} 47. Ne4 {[%clk
0:00:10.3]} 47... Re8+ {[%clk 0:00:52.6]} 48. Kd4 {[%clk 0:00:07.9]} 48... Rf4
{[%clk 0:00:51.6]} 49. Ke3 {[%clk 0:00:06.3]} 49... Rfxe4+ {[%clk 0:00:51.6]}
0-1

[Event "*** Titled Tuesday Blitz"]
[Site "Chess.com"]
[Date "2020.10.27"]
[Round "2"]
[White "Pultis"]
[Black "TokChess"]
[Result "1-0"]
[WhiteElo "2715"]
[BlackElo "2420"]
[TimeControl "180+1"]
[EndTime "10:17:55 PDT"]
[Termination "Pultis won by resignation"]

1. d4 {[%clk 0:03:00.9]} 1... Nf6 {[%clk 0:02:58.6]} 2. c4 {[%clk 0:03:00.9]}
2... g6 {[%clk 0:02:58.8]} 3. Nf3 {[%clk 0:02:59.9]} 3... Bg7 {[%clk 0:02:58.6]}
4. g3 {[%clk 0:03:00.4]} 4... O-O {[%clk 0:02:58.6]} 5. Bg2 {[%clk 0:03:01]}
5... d5 {[%clk 0:02:59.2]} 6. cxd5 {[%clk 0:03:00.2]} 6... Nxd5 {[%clk
0:02:59.4]} 7. O-O {[%clk 0:03:00.8]} 7... Nc6 {[%clk 0:02:59.8]} 8. e4 {[%clk
0:02:41.7]} 8... Nb6 {[%clk 0:02:59.7]} 9. d5 {[%clk 0:02:28.3]} 9... Na5 {[%clk
0:02:59.7]} 10. Na3 {[%clk 0:01:40.5]} 10... c6 {[%clk 0:02:57.1]} 11. dxc6
{[%clk 0:01:19.1]} 11... Nxc6 {[%clk 0:02:56.5]} 12. h3 {[%clk 0:01:17.8]} 12...
Be6 {[%clk 0:02:33.1]} 13. Qe2 {[%clk 0:01:16.6]} 13... Nd4 {[%clk 0:02:21.3]}
14. Nxd4 {[%clk 0:01:16.2]} 14... Qxd4 {[%clk 0:02:21.9]} 15. Rd1 {[%clk
0:01:14.3]} 15... Qb4 {[%clk 0:02:20.7]} 16. Nc2 {[%clk 0:01:07.9]} 16... Qc4
{[%clk 0:02:15.1]} 17. Qxc4 {[%clk 0:01:07.9]} 17... Nxc4 {[%clk 0:02:14.4]} 18.
Rb1 {[%clk 0:01:00]} 18... Rfd8 {[%clk 0:02:14.1]} 19. Re1 {[%clk 0:00:38]}
19... Ne5 {[%clk 0:02:12.2]} 20. Be3 {[%clk 0:00:31]} 20... Nd3 {[%clk
0:02:08.5]} 21. Red1 {[%clk 0:00:31.1]} 21... Bxa2 {[%clk 0:02:08]} 22. Ra1
{[%clk 0:00:30.6]} 22... Bb3 {[%clk 0:02:08]} 23. Rd2 {[%clk 0:00:27.9]} 23...
Bxb2 {[%clk 0:01:53]} 24. Rad1 {[%clk 0:00:23.1]} 24... Rdc8 {[%clk 0:01:39]}
25. Rxd3 {[%clk 0:00:10.9]} 25... Bxc2 {[%clk 0:01:38]} 26. R3d2 {[%clk
0:00:08.3]} 26... Bxd1 {[%clk 0:01:30.9]} 27. Rxb2 {[%clk 0:00:09.2]} 27... b6
{[%clk 0:01:28.5]} 28. e5 {[%clk 0:00:09.5]} 28... Rab8 {[%clk 0:01:17.3]} 29.
Bg5 {[%clk 0:00:09.6]} 29... Kf8 {[%clk 0:01:07.2]} 30. Bh6+ {[%clk 0:00:08.6]}
30... Ke8 {[%clk 0:01:04.5]} 31. Bf1 {[%clk 0:00:08.1]} 31... Bf3 {[%clk
0:00:54.5]} 32. Ra2 {[%clk 0:00:07]} 32... a5 {[%clk 0:00:52.9]} 33. Ba6 {[%clk
0:00:06.2]} 33... Rc1+ {[%clk 0:00:48.9]} 34. Bxc1 {[%clk 0:00:05.3]} 34... Rd8
{[%clk 0:00:44.9]} 35. Bb5+ {[%clk 0:00:05.4]} 35... Kf8 {[%clk 0:00:44.1]} 36.
Bh6+ {[%clk 0:00:05.8]} 36... Kg8 {[%clk 0:00:44.4]} 37. Rd2 {[%clk 0:00:06.5]}
37... Rc8 {[%clk 0:00:41.6]} 38. g4 {[%clk 0:00:06.6]} 38... Ra8 {[%clk
0:00:23.8]} 39. Kh2 {[%clk 0:00:05.7]} 39... a4 {[%clk 0:00:23.6]} 40. Bxa4
{[%clk 0:00:06.2]} 1-0

[Event "*** Titled Tuesday Blitz"]
[Site "Chess.com"]
[Date "2020.10.27"]
[Round "2"]
[White "chessasuke"]
[Black "crescentmoon2411"]
[Result "1/2-1/2"]
[WhiteElo "2573"]
[BlackElo "2839"]
[TimeControl "180+1"]
[EndTime "10:17:56 PDT"]
[Termination "Game drawn by repetition"]

1. c4 {[%clk 0:03:00.6]} 1... Nf6 {[%clk 0:02:58.9]} 2. Nf3 {[%clk 0:02:59.3]}
2... e6 {[%clk 0:02:57.1]} 3. g3 {[%clk 0:03:00.2]} 3... d5 {[%clk 0:02:54.6]}
4. Bg2 {[%clk 0:03:01.1]} 4... dxc4 {[%clk 0:02:53.6]} 5. Qa4+ {[%clk
0:02:57.3]} 5... Bd7 {[%clk 0:02:49.3]} 6. Qxc4 {[%clk 0:02:57.2]} 6... c5
{[%clk 0:02:49.5]} 7. Ne5 {[%clk 0:02:51.3]} 7... Qc8 {[%clk 0:02:43.4]} 8. O-O
{[%clk 0:02:48.4]} 8... Nc6 {[%clk 0:02:42.9]} 9. Nxd7 {[%clk 0:02:47.8]} 9...
Qxd7 {[%clk 0:02:43.7]} 10. b3 {[%clk 0:02:39]} 10... Rc8 {[%clk 0:02:38.8]} 11.
Bb2 {[%clk 0:02:38]} 11... Be7 {[%clk 0:02:38.2]} 12. Nc3 {[%clk 0:02:30.9]}
12... O-O {[%clk 0:02:37.1]} 13. Rfd1 {[%clk 0:02:22.7]} 13... Rfd8 {[%clk
0:02:19.9]} 14. Ne4 {[%clk 0:02:11.9]} 14... Nd4 {[%clk 0:02:09.9]} 15. e3
{[%clk 0:02:05.2]} 15... b5 {[%clk 0:01:56.3]} 16. Qf1 {[%clk 0:01:47.9]} 16...
Nc2 {[%clk 0:01:55.2]} 17. Rac1 {[%clk 0:01:27]} 17... Nb4 {[%clk 0:01:55.1]}
18. d4 {[%clk 0:01:26.9]} 18... cxd4 {[%clk 0:01:45.7]} 19. Rxc8 {[%clk
0:01:25.5]} 19... Rxc8 {[%clk 0:01:27]} 20. Bxd4 {[%clk 0:01:25.6]} 20... Nxe4
{[%clk 0:01:10.4]} 21. Bxe4 {[%clk 0:01:26.5]} 21... Nxa2 {[%clk 0:01:05.9]} 22.
Bxg7 {[%clk 0:01:19.1]} 22... Qxd1 {[%clk 0:01:04.1]} 23. Qxd1 {[%clk
0:01:17.7]} 23... Rc1 {[%clk 0:01:04.7]} 24. Qxc1 {[%clk 0:01:17.7]} 24... Nxc1
{[%clk 0:01:05.6]} 25. Bd4 {[%clk 0:01:16.2]} 25... a5 {[%clk 0:01:02.7]} 26.
Bc6 {[%clk 0:00:43.8]} 26... Nxb3 {[%clk 0:00:46.7]} 27. Bxb5 {[%clk 0:00:43.7]}
27... Nxd4 {[%clk 0:00:42.6]} 28. exd4 {[%clk 0:00:44.6]} 28... Bf6 {[%clk
0:00:42.8]} 29. Kf1 {[%clk 0:00:37.3]} 29... Bxd4 {[%clk 0:00:42.7]} 30. Ke2
{[%clk 0:00:37.8]} 30... Kf8 {[%clk 0:00:41]} 31. f3 {[%clk 0:00:34.7]} 31... h6
{[%clk 0:00:39.1]} 32. h4 {[%clk 0:00:33.7]} 32... Ke7 {[%clk 0:00:38]} 33. g4
{[%clk 0:00:30.8]} 33... Bf6 {[%clk 0:00:38]} 34. h5 {[%clk 0:00:29.9]} 34...
Bg5 {[%clk 0:00:37.7]} 35. Kd3 {[%clk 0:00:30.1]} 35... Kd6 {[%clk 0:00:37.9]}
36. Kc4 {[%clk 0:00:29.8]} 36... Ke5 {[%clk 0:00:37.2]} 37. Be8 {[%clk
0:00:29.7]} 37... f5 {[%clk 0:00:25.1]} 38. gxf5 {[%clk 0:00:29.2]} 38... exf5
{[%clk 0:00:22.5]} 39. Bg6 {[%clk 0:00:25.4]} 39... Bd2 {[%clk 0:00:20.7]} 40.
Kb5 {[%clk 0:00:25.2]} 40... Kf6 {[%clk 0:00:20.6]} 41. Bh7 {[%clk 0:00:23.5]}
41... Kg5 {[%clk 0:00:20.4]} 42. Bg6 {[%clk 0:00:23.9]} 42... f4 {[%clk
0:00:15.8]} 43. Ka4 {[%clk 0:00:24]} 43... Kh4 {[%clk 0:00:15.5]} 44. Kb5 {[%clk
0:00:24.4]} 44... Bb4 {[%clk 0:00:13.8]} 45. Ka4 {[%clk 0:00:24.3]} 45... Kg3
{[%clk 0:00:13.6]} 46. Be4 {[%clk 0:00:23.9]} 46... Kh4 {[%clk 0:00:13.9]} 47.
Bg6 {[%clk 0:00:24.2]} 47... Kg3 {[%clk 0:00:14.4]} 48. Be4 {[%clk 0:00:24.5]}
48... Kh4 {[%clk 0:00:14.8]} 49. Bg6 {[%clk 0:00:25]} 1/2-1/2

[Event "*** Titled Tuesday Blitz"]
[Site "Chess.com"]
[Date "2020.10.27"]
[Round "2"]
[White "Funo09"]
[Black "Fh2411"]
[Result "1-0"]
[WhiteElo "2792"]
[BlackElo "2517"]
[TimeControl "180+1"]
[EndTime "10:17:56 PDT"]
[Termination "Funo09 won by resignation"]

1. e4 {[%clk 0:03:00.9]} 1... c5 {[%clk 0:02:59.6]} 2. Nc3 {[%clk 0:03:00.8]}
2... e6 {[%clk 0:03:00.1]} 3. Nf3 {[%clk 0:03:00.4]} 3... a6 {[%clk 0:03:00.2]}
4. d4 {[%clk 0:03:01]} 4... cxd4 {[%clk 0:03:01.1]} 5. Nxd4 {[%clk 0:03:01.9]}
5... Qc7 {[%clk 0:03:00.6]} 6. Bd3 {[%clk 0:03:02.2]} 6... b5 {[%clk 0:02:59.2]}
7. O-O {[%clk 0:03:02.2]} 7... Bb7 {[%clk 0:02:59.7]} 8. Qe2 {[%clk 0:03:02.6]}
8... d6 {[%clk 0:02:55.2]} 9. Bd2 {[%clk 0:03:01.2]} 9... Nd7 {[%clk 0:02:55]}
10. a4 {[%clk 0:03:01]} 10... b4 {[%clk 0:02:46.1]} 11. Na2 {[%clk 0:03:01.1]}
11... e5 {[%clk 0:02:46.2]} 12. Nb3 {[%clk 0:02:53.5]} 12... a5 {[%clk
0:02:43.5]} 13. c3 {[%clk 0:02:53.5]} 13... bxc3 {[%clk 0:02:31.8]} 14. Nxc3
{[%clk 0:02:54.4]} 14... Ngf6 {[%clk 0:02:31.4]} 15. Rac1 {[%clk 0:02:52.4]}
15... Nc5 {[%clk 0:02:28.4]} 16. Nb5 {[%clk 0:02:47]} 16... Qb6 {[%clk
0:02:23.8]} 17. Be3 {[%clk 0:02:30.8]} 17... Rc8 {[%clk 0:02:14.6]} 18. Bxc5
{[%clk 0:01:44.5]} 18... dxc5 {[%clk 0:02:12.5]} 19. Qe1 {[%clk 0:01:44.8]}
19... Ra8 {[%clk 0:01:59.4]} 20. Qc3 {[%clk 0:01:38.6]} 20... Nd7 {[%clk
0:01:57.5]} 21. Nd2 {[%clk 0:01:36.7]} 21... Bc6 {[%clk 0:00:40.4]} 22. Nc4
{[%clk 0:01:35.9]} 22... Qb8 {[%clk 0:00:40.8]} 23. Nxa5 {[%clk 0:01:35.6]}
23... Bb7 {[%clk 0:00:35.9]} 24. Bc4 {[%clk 0:01:08.2]} 24... Bxe4 {[%clk
0:00:26.4]} 25. Rfe1 {[%clk 0:01:07.1]} 25... Qb6 {[%clk 0:00:23.1]} 26. Rxe4
{[%clk 0:01:00]} 26... Qxa5 {[%clk 0:00:22.8]} 27. Rxe5+ {[%clk 0:00:50.5]}
27... Be7 {[%clk 0:00:16.3]} 28. Re3 {[%clk 0:00:18.1]} 28... O-O {[%clk
0:00:10.6]} 29. Rxe7 {[%clk 0:00:15.7]} 29... Qxc3 {[%clk 0:00:10.5]} 30. Nxc3
{[%clk 0:00:16.6]} 30... Nb6 {[%clk 0:00:10.7]} 31. Bb5 {[%clk 0:00:17]} 31...
h6 {[%clk 0:00:09.3]} 32. Rce1 {[%clk 0:00:17]} 32... Rad8 {[%clk 0:00:07.6]}
33. h3 {[%clk 0:00:17.6]} 33... Rd2 {[%clk 0:00:06.1]} 34. R1e2 {[%clk
0:00:18.2]} 34... Rd4 {[%clk 0:00:05.8]} 35. Re8 {[%clk 0:00:18.2]} 35... g5
{[%clk 0:00:04.5]} 36. a5 {[%clk 0:00:17.9]} 36... Nc8 {[%clk 0:00:03.4]} 37.
Rxf8+ {[%clk 0:00:17.5]} 37... Kxf8 {[%clk 0:00:04.3]} 38. Re8+ {[%clk
0:00:17.9]} 1-0

[Event "*** Titled Tuesday Blitz"]
[Site "Chess.com"]
[Date "2020.10.27"]
[Round "2"]
[White "German_Bazeev"]
[Black "Ural_bogatyr"]
[Result "1-0"]
[WhiteElo "2775"]
[BlackElo "2358"]
[TimeControl "180+1"]
[EndTime "10:17:57 PDT"]
[Termination "German_Bazeev won by resignation"]

1. d4 {[%clk 0:03:00.9]} 1... Nf6 {[%clk 0:02:56.7]} 2. Nf3 {[%clk 0:03:00.7]}
2... d5 {[%clk 0:02:56.8]} 3. c4 {[%clk 0:02:54.9]} 3... c6 {[%clk 0:02:55.4]}
4. Qc2 {[%clk 0:02:53.1]} 4... e6 {[%clk 0:02:47.1]} 5. Bg5 {[%clk 0:02:50.3]}
5... h6 {[%clk 0:02:44.5]} 6. Bxf6 {[%clk 0:02:41.8]} 6... Qxf6 {[%clk
0:02:45.4]} 7. Nbd2 {[%clk 0:02:42.2]} 7... Nd7 {[%clk 0:02:39.4]} 8. e3 {[%clk
0:02:41.7]} 8... Bd6 {[%clk 0:02:31.7]} 9. Bd3 {[%clk 0:02:40.6]} 9... O-O
{[%clk 0:02:31.3]} 10. O-O {[%clk 0:02:40.4]} 10... e5 {[%clk 0:02:29]} 11. cxd5
{[%clk 0:02:39.4]} 11... cxd5 {[%clk 0:02:28.4]} 12. dxe5 {[%clk 0:02:39.7]}
12... Nxe5 {[%clk 0:02:28.4]} 13. Nxe5 {[%clk 0:02:31.1]} 13... Qxe5 {[%clk
0:02:19.2]} 14. Nf3 {[%clk 0:02:30.9]} 14... Qh5 {[%clk 0:02:19.7]} 15. Be2
{[%clk 0:02:14.1]} 15... Bf5 {[%clk 0:02:07]} 16. Qb3 {[%clk 0:02:07.5]} 16...
Be4 {[%clk 0:02:03.6]} 17. Rfd1 {[%clk 0:02:07.9]} 17... Bxf3 {[%clk 0:02:00.6]}
18. Bxf3 {[%clk 0:02:07.8]} 18... Qxh2+ {[%clk 0:02:01.1]} 19. Kf1 {[%clk
0:02:08.2]} 19... Rac8 {[%clk 0:01:50]} 20. Ke2 {[%clk 0:01:52.6]} 20... Qe5
{[%clk 0:01:29.3]} 21. Rxd5 {[%clk 0:01:49.5]} 21... Qf6 {[%clk 0:01:27.8]} 22.
Rad1 {[%clk 0:01:47]} 22... Be5 {[%clk 0:01:26.5]} 23. R5d2 {[%clk 0:01:31.8]}
23... Qa6+ {[%clk 0:01:17]} 24. Ke1 {[%clk 0:01:13.2]} 24... Bc7 {[%clk
0:01:16.8]} 25. Bxb7 {[%clk 0:01:08.7]} 25... Qg6 {[%clk 0:01:08.6]} 26. Bxc8
{[%clk 0:00:54.2]} 26... Rxc8 {[%clk 0:01:05.9]} 27. Qd5 {[%clk 0:00:44.8]}
27... Qa6 {[%clk 0:00:28.5]} 28. a3 {[%clk 0:00:39.8]} 28... Ba5 {[%clk
0:00:21.8]} 29. b4 {[%clk 0:00:39]} 29... Bb6 {[%clk 0:00:22.4]} 30. Qd3 {[%clk
0:00:39.1]} 30... Qb7 {[%clk 0:00:21.8]} 31. Kf1 {[%clk 0:00:38.6]} 31... Qe7
{[%clk 0:00:17.9]} 32. Qf5 {[%clk 0:00:34.1]} 32... Rf8 {[%clk 0:00:16.6]} 33.
g3 {[%clk 0:00:29.9]} 33... Qb7 {[%clk 0:00:15.7]} 34. e4 {[%clk 0:00:28.8]}
34... Qa6+ {[%clk 0:00:15.6]} 35. Kg2 {[%clk 0:00:27.9]} 35... Qxa3 {[%clk
0:00:16.1]} 36. b5 {[%clk 0:00:28.4]} 36... Qc3 {[%clk 0:00:12.2]} 37. Rd3
{[%clk 0:00:27]} 37... Qb2 {[%clk 0:00:11.9]} 38. Rf3 {[%clk 0:00:26]} 38... f6
{[%clk 0:00:10.4]} 39. Rd7 {[%clk 0:00:24.7]} 39... Re8 {[%clk 0:00:06.8]} 40.
Qg6 {[%clk 0:00:23.4]} 1-0

[Event "*** Titled Tuesday Blitz"]
[Site "Chess.com"]
[Date "2020.10.27"]
[Round "2"]
[White "Skatchkov_V"]
[Black "nitpicker"]
[Result "1-0"]
[WhiteElo "2481"]
[BlackElo "2267"]
[TimeControl "180+1"]
[EndTime "10:17:57 PDT"]
[Termination "Skatchkov_V won on time"]

1. d4 {[%clk 0:03:00.9]} 1... Nf6 {[%clk 0:02:42.9]} 2. c4 {[%clk 0:03:00.6]}
2... e6 {[%clk 0:02:30]} 3. Nf3 {[%clk 0:02:57.9]} 3... b6 {[%clk 0:02:29.2]} 4.
g3 {[%clk 0:02:57.6]} 4... Ba6 {[%clk 0:02:24.4]} 5. b3 {[%clk 0:02:56.7]} 5...
c6 {[%clk 0:02:24.4]} 6. Bg2 {[%clk 0:02:56.4]} 6... d5 {[%clk 0:02:24.2]} 7.
O-O {[%clk 0:02:46.6]} 7... Be7 {[%clk 0:02:09.9]} 8. Nbd2 {[%clk 0:02:43.6]}
8... O-O {[%clk 0:02:09.1]} 9. Ne5 {[%clk 0:02:41.9]} 9... Nfd7 {[%clk
0:02:06.3]} 10. Nxd7 {[%clk 0:02:41.4]} 10... Nxd7 {[%clk 0:02:06.9]} 11. Bb2
{[%clk 0:02:42.3]} 11... Rc8 {[%clk 0:02:02.7]} 12. e4 {[%clk 0:02:41]} 12...
dxe4 {[%clk 0:01:43.9]} 13. Nxe4 {[%clk 0:02:39.4]} 13... Nf6 {[%clk 0:01:43.8]}
14. Nc3 {[%clk 0:02:38.9]} 14... Qc7 {[%clk 0:01:38.8]} 15. Qf3 {[%clk 0:02:30]}
15... Rfd8 {[%clk 0:01:36.2]} 16. Rad1 {[%clk 0:02:28.4]} 16... Bb7 {[%clk
0:01:35.7]} 17. Rfe1 {[%clk 0:02:27.5]} 17... Ba8 {[%clk 0:01:33.4]} 18. Qe2
{[%clk 0:02:22]} 18... Bf8 {[%clk 0:01:27.2]} 19. a3 {[%clk 0:02:04.9]} 19... a6
{[%clk 0:01:22.9]} 20. b4 {[%clk 0:01:56.5]} 20... c5 {[%clk 0:01:23]} 21. bxc5
{[%clk 0:01:52.9]} 21... bxc5 {[%clk 0:01:23.2]} 22. d5 {[%clk 0:01:52]} 22...
exd5 {[%clk 0:01:22.1]} 23. Nxd5 {[%clk 0:01:46.2]} 23... Nxd5 {[%clk
0:01:19.4]} 24. cxd5 {[%clk 0:01:41.6]} 24... Qb6 {[%clk 0:01:03]} 25. Rb1
{[%clk 0:01:33.5]} 25... Qb5 {[%clk 0:00:56.2]} 26. Qc2 {[%clk 0:01:23.9]} 26...
Qa5 {[%clk 0:00:50.2]} 27. Bc3 {[%clk 0:01:20.9]} 27... Qc7 {[%clk 0:00:47]} 28.
Rbd1 {[%clk 0:01:17.3]} 28... Bd6 {[%clk 0:00:39.8]} 29. Qa4 {[%clk 0:01:15]}
29... Bb7 {[%clk 0:00:35]} 30. Qg4 {[%clk 0:01:14.6]} 30... g6 {[%clk 0:00:33]}
31. h4 {[%clk 0:01:11.7]} 31... Bf8 {[%clk 0:00:28.3]} 32. d6 {[%clk 0:01:04.6]}
32... Qd7 {[%clk 0:00:23.3]} 33. Qf4 {[%clk 0:00:56.9]} 33... f5 {[%clk
0:00:18.6]} 34. Qe5 {[%clk 0:00:27.6]} 34... Bg7 {[%clk 0:00:18.2]} 35. Qxg7+
{[%clk 0:00:27.1]} 35... Qxg7 {[%clk 0:00:18.2]} 36. Bxg7 {[%clk 0:00:25.6]}
36... Bxg2 {[%clk 0:00:18.1]} 37. Bf6 {[%clk 0:00:25.4]} 37... Rf8 {[%clk
0:00:17.2]} 38. d7 {[%clk 0:00:24.4]} 38... Rcd8 {[%clk 0:00:16.3]} 39. Bxd8
{[%clk 0:00:23.4]} 39... Bf3 {[%clk 0:00:14.4]} 40. Be7 {[%clk 0:00:22.8]} 40...
Bxd1 {[%clk 0:00:13.2]} 41. Rxd1 {[%clk 0:00:23.7]} 1-0